[Event "5th Sharjah Masters 2022"]
[Site "Sharjah"]
[Date "2022.05.25"]
[Round "5.24"]
[White "Buksa, Nataliya"]
[Black "Aravindh, Chithambaram VR."]
[Result "0-1"]
[ECO "B22"]
[WhiteElo "2406"]
[BlackElo "2606"]
[Annotator "TA"]
[PlyCount "60"]
[EventDate "2022.05.21"]
[EventType "swiss"]
[EventCountry "UAE"]
[SourceTitle "playchess.com"]
[Source "ChessBase"]
[SourceQuality "1"]
[TimeControl "5400+30"]

{[%evp 12,59,35,33,33,23,31,34,55,17,51,22,30,22,36,22,47,0,49,46,47,42,77,83,86,-12,-21,0,0,-52,-25,-62,-56,-98,-86,-225,-234,-994,-760,-660,-637,-29941,-5994,-29992,-29993,-29997,-29998,-29998,-29999,-29999]} 1. e4 {[%emt 0:00:28]} c5 {[%emt 0:00:14]} 2. c3 {[%emt 0:00:05]} e6 {[%emt 0:00:58]} 3. d4 {[%emt 0:04:08]} d5 {[%emt 0:00:09]} 4. exd5 {[%emt 0:01:21]} Qxd5 {[%emt 0:01:16]} 5. Nf3 {[%emt 0:00:04]} Nf6 {[%emt 0:00:25]} 6. Na3 {[%emt 0:00:14]} Qd8 {[%emt 0:02:38]} 7. Nc4 {[%emt 0:03:14]} Be7 $1 {[%emt 0:01:54][%mdl 4] is now more promising than 7...Nc6. B22: Sicilian: 2 c3.} 8. Bd3 {[%emt 0:02:54]} O-O {[%emt 0:06:26]} 9. O-O {[%emt 0:11:57]} b6 {[%emt 0:00:22] White is slightly better.} 10. Qe2 {[%emt 0:02:01]} Bb7 {[%emt 0:00:58] [#]} 11. Bf4 $146 {[%emt 0:00:21]} ({Predecessor:} 11. Rd1 Nbd7 12. dxc5 Bxc5 13. Bf4 Qc8 14. a4 Re8 15. Nd6 Bxd6 16. Bxd6 e5 17. Bf5 {1-0 (55) Sahin,O (2164)-Aytekin,M (2063) Nis 2017}) 11... cxd4 {[%emt 0:14:25]} 12. Nxd4 {[%emt 0:00:49]} Qd5 {[%emt 0:00:34][%csl Gb7][%cal Rd5g2] [#]} 13. Ne3 {[%emt 0:02:18]} Qc5 {[%emt 0:11:26]} 14. Nc4 {[%emt 0:15:24]} (14. Rfd1 $14 {feels stronger.}) 14... Nbd7 {[%emt 0:11:48]} (14... Qd5 $11 {deserves consideration.} 15. Nf3 Qh5) 15. Rad1 {[%emt 0:03:09]} Qd5 {[%emt 0:12:59][%csl Gb7][%cal Rd5g2]} 16. f3 {[%emt 0:09:16]} Rad8 {[%emt 0:05:50]} 17. b4 {[%emt 0:12:36]} Qh5 {[%emt 0:03:12]} 18. Rfe1 {[%emt 0:14:08]} (18. Nd6 $16 Bxd6 19. Bxd6) 18... Nd5 $11 {[%emt 0:01:00][%csl LRc3,LRf4]} 19. Bd2 {[%emt 0:00:03]} Ba8 {[%emt 0:08:22]} 20. g3 {[%emt 0:02:18]} (20. Be4 $11) 20... Bf6 {[%emt 0:02:08][%cal Od5b4] aiming for ...Nxb4!} (20... Rc8 $5 {[%cal Rb6b5]}) 21. a3 {[%emt 0:03:39]} b5 $36 {[%emt 0:06:31][%mdl 2048] Black is pushing.} 22. Nb2 {[%emt 0:00:30]} (22. Nxb5 $2 N5b6 23. Nxb6 (23. Nxa7 $2 Nxc4 24. g4 Qh3 $19) 23... Bxf3 $19) 22... Rc8 {[%emt 0:01:57]} 23. Bxb5 {[%emt 0:02:57] Loses the game.} (23. f4 $17 Qxe2 24. Nxe2) 23... Rxc3 $19 {[%emt 0:00:45]} 24. Nxe6 {[%emt 0:07:35]} ({Much weaker is} 24. Bxc3 Nxc3 25. Qe3 Nxd1 26. Rxd1 Bxd4 27. Rxd4 Qxb5 $19) (24. Qf2 Rxa3 25. g4 (25. Bxd7 $2 Nb6 $19)) 24... fxe6 {[%emt 0:00:25]} 25. Qxe6+ {[%emt 0:00:57]} Kh8 {[%emt 0:00:08] ( -> ...Bd4+)} 26. Be2 {[%emt 0:00:28]} Bd4+ {[%emt 0:00:27]} 27. Kg2 {[%emt 0:00:16] [#]} Rcxf3 $1 {[%emt 0:00:49] Black mates.} 28. Bxf3 {[%emt 0:00:24]} (28. h4 Rxg3+) 28... Qxf3+ {[%emt 0:00:18]} 29. Kh3 {[%emt 0:00:02]} Nf4+ {[%emt 0:00:18]} 30. Bxf4 {[%emt 0:00:05]} Qh5# {[%emt 0:00:05] Weighted Error Value: White=0.87/Black=0.17 (very precise)} 0-1

[Event "5th Sharjah Masters 2022"]
[Site "Sharjah"]
[Date "2022.05.25"]
[Round "5.25"]
[White "Aziz, Husain"]
[Black "Can, Emre"]
[Result "0-1"]
[ECO "D85"]
[WhiteElo "2379"]
[BlackElo "2599"]
[Annotator "TA"]
[PlyCount "96"]
[EventDate "2022.05.21"]
[EventType "swiss"]
[EventCountry "UAE"]
[SourceTitle "playchess.com"]
[Source "ChessBase"]
[SourceQuality "1"]
[TimeControl "5400+30"]

{[%evp 17,96,0,0,0,0,-4,11,20,59,18,43,27,64,33,61,34,39,35,152,147,211,213,214,212,194,129,136,125,131,127,140,141,147,141,141,130,141,140,128,134,165,82,83,87,70,18,15,18,18,-89,-104,-103,-106,-141,-137,-179,-188,-186,-78,-175,-174,-170,-145,-181,-149,-162,-155,-225,-214,-200,-212,-238,-245,-334,-328,-969,-968,-920,-917,-29987,-29988]} 1. d4 {[%emt 0:00:17]} Nf6 {[%emt 0:00:31]} 2. c4 {[%emt 0:00:22]} g6 {[%emt 0:00:26]} 3. Nc3 {[%emt 0:00:30]} d5 {[%emt 0:00:39]} 4. cxd5 {[%emt 0:00:22]} Nxd5 {[%emt 0:00:18]} 5. e4 {[%emt 0:00:13]} Nxc3 {[%emt 0:00:17]} 6. bxc3 {[%emt 0:00:10]} Bg7 {[%emt 0:00:17]} 7. Nf3 {[%emt 0:00:23]} c5 {[%emt 0:01:04]} 8. h3 {[%emt 0:00:25]} O-O {[%emt 0:00:37]} 9. Be2 {[%emt 0:00:10]} b6 {[%emt 0:02:25]} 10. O-O {[%emt 0:01:43] D85: Exchange Grünfeld: Unusual White 7th moves and lines with 7 Nf3.} Bb7 {[%emt 0:01:47]} 11. Qd3 {[%emt 0:02:24]} Qc7 $5 {[%emt 0:07:19][%mdl 4] A promising side line.} 12. Bg5 {[%emt 0:09:02] The position is equal.} Nd7 {[%emt 0:06:48] [#]} 13. d5 $146 {[%emt 0:05:23]} ({Of course not} 13. Bxe7 Rfe8 14. Bg5 Bxe4 $11) ({Predecessor:} 13. Rac1 h6 14. Bxe7 Rfe8 15. d5 Ne5 16. Nxe5 Qxe7 17. Nc6 Bxc6 18. dxc6 Rac8 19. Qf3 Rxc6 {½-½ (26) Straka,V (2341)-Votava,J (2522) Czech Republic 2017}) 13... Ne5 {[%emt 0:16:29]} 14. Qe3 {[%emt 0:19:15]} f5 {[%emt 0:17:32]} 15. exf5 {[%emt 0:06:05]} Rxf5 {[%emt 0:01:35]} 16. Nh4 {[%emt 0:07:13]} (16. Rad1 $5 {[%cal Rf3h4]}) 16... Rff8 {[%emt 0:02:50]} 17. Rad1 {[%emt 0:02:32]} Bf6 {[%emt 0:11:25]} (17... Rad8 $14) 18. Bf4 $1 $16 {[%emt 0:04:14][%cal Og1h1]} Rad8 {[%emt 0:10:34]} (18... Rae8 $16 19. Bb5 Rd8) 19. Nf3 $18 {[%emt 0:06:32]} Nxf3+ {[%emt 0:01:09]} 20. Bxf3 {[%emt 0:01:46]} Qd7 {[%emt 0:01:26]} 21. Bh6 {[%emt 0:02:02]} (21. Bg4 $18 Qb5 22. Rfe1) 21... Bg7 $16 {[%emt 0:01:25]} 22. Bxg7 {[%emt 0:04:58]} Kxg7 {[%emt 0:00:32]} 23. Rfe1 {[%emt 0:01:30]} Rde8 {[%emt 0:03:26]} 24. Qe5+ {[%emt 0:01:26]} Rf6 {[%emt 0:00:06] [#]} 25. c4 $1 {[%emt 0:05:50]} Qd6 {[%emt 0:01:16]} 26. Qc3 {[%emt 0:01:25] Re6 is the strong threat.} Bc8 {[%emt 0:01:13] Inhibits Re6.} 27. Re5 {[%emt 0:00:56]} Kg8 {[%emt 0:00:48][%cal Oc8h3]} 28. Rde1 {[%emt 0:00:22]} Rf7 {[%emt 0:04:14]} 29. Qa3 {[%emt 0:03:15]} (29. Bg4 $18) 29... a6 {[%emt 0:00:47]} 30. Qb3 {[%emt 0:07:31]} Ref8 {[%emt 0:01:34][%cal Oc8h3]} 31. Qe3 {[%emt 0:02:20]} ({White should try} 31. R5e3 $14) 31... Bxh3 $1 $11 {[%emt 0:01:04]} 32. Rxe7 {[%emt 0:01:01]} Bd7 {[%emt 0:00:20]} 33. Re6 {[%emt 0:02:24]} Bxe6 $17 {[%emt 0:00:26]} 34. dxe6 {[%emt 0:00:01]} Re7 {[%emt 0:00:19]} 35. Bd5 {[%emt 0:01:08]} b5 {[%emt 0:00:34]} 36. Re2 {[%emt 0:02:04]} bxc4 {[%emt 0:01:04]} 37. Bxc4 {[%emt 0:00:02] [#]} a5 {[%emt 0:01:49]} (37... Rf4 $1 $19 {[%cal Rf4c4] has better winning chances.} 38. Rd2 Rd4 39. Rxd4 Qxd4) 38. g3 {[%emt 0:00:26]} (38. Rd2 $17 Qf4 39. Qe2) 38... Qd4 $19 {[%emt 0:00:32]} 39. Qc1 {[%emt 0:01:41]} Kg7 {[%emt 0:01:20]} 40. Kg2 {[%emt 0:00:06]} h6 {[%emt 0:00:26]} ({Stronger than} 40... Qf6 41. Qd2) 41. Qc2 {[%emt 0:00:21]} Rd8 {[%emt 0:00:47]} 42. Re4 {[%emt 0:00:44]} (42. Bb3 $17 {keeps fighting.}) 42... Qd2 {[%emt 0:00:13]} 43. Qb3 {[%emt 0:00:09]} Rd4 {[%emt 0:00:27]} 44. Re2 {[%emt 0:00:22]} Qb4 {[%emt 0:00:32]} 45. Rc2 {[%emt 0:01:02]} a4 {[%emt 0:00:58]} 46. Qe3 {[%emt 0:00:15]} (46. Qc3) 46... Rxc4 {[%emt 0:00:43]} 47. Qe5+ {[%emt 0:00:01]} Kh7 {[%emt 0:00:07]} 48. Qf6 {[%emt 0:00:34]} Qb7+ {[%emt 0:00:11] Black used his chance.  Weighted Error Value: White=0.50/Black=0.16 (very precise)} 0-1

[Event "5th Sharjah Masters 2022"]
[Site "Sharjah"]
[Date "2022.05.25"]
[Round "5.26"]
[White "Msellek, Ilyass"]
[Black "Nihal Sarin"]
[Result "1/2-1/2"]
[ECO "B12"]
[WhiteElo "2411"]
[BlackElo "2646"]
[Annotator "TA"]
[PlyCount "59"]
[EventDate "2022.05.21"]
[EventType "swiss"]
[EventCountry "UAE"]
[SourceTitle "playchess.com"]
[Source "ChessBase"]
[SourceQuality "1"]
[TimeControl "5400+30"]

{[%evp 9,59,0,0,5,12,0,0,-1,-6,-15,-4,-10,-11,-22,-22,-28,0,-12,0,-12,0,0,0,0,0,0,37,44,32,0,58,0,0,0,50,34,44,51,39,19,24,31,16,17,139,121,129,100,90,82,85,51]} 1. e4 {[%emt 0:00:13]} c6 {[%emt 0:00:52]} 2. d4 {[%emt 0:00:34]} d5 {[%emt 0:00:07]} 3. e5 {[%emt 0:00:45]} c5 {[%emt 0:00:38]} 4. dxc5 {[%emt 0:00:21]} e6 {[%emt 0:00:07]} 5. a3 {[%emt 0:01:40]} Bxc5 {[%emt 0:00:11]} 6. b4 {[%emt 0:01:52] B12: Caro-Kann: Advance Variation.} Be7 {[%emt 0:01:47]} 7. Qg4 {[%emt 0:06:10]} g6 {[%emt 0:00:50]} 8. Nf3 {[%emt 0:03:47] The position is equal.} a5 {[%emt 0:01:43]} 9. b5 {[%emt 0:02:25]} ({Reject} 9. Bb5+ Bd7 10. Bxd7+ Nxd7 $15) 9... Nd7 {[%emt 0:00:29] Black wants to play ...f6.} 10. Bb2 {[%emt 0:06:23]} h5 {[%emt 0:03:07]} 11. Qd4 {[%emt 0:06:05]} Nh6 {[%emt 0:01:59]} 12. Bd3 {[%emt 0:01:37]} Nc5 {[%emt 0:08:35]} 13. Nbd2 {[%emt 0:09:44]} b6 {[%emt 0:01:30]} 14. O-O {[%emt 0:01:29] [#]} Bb7 $146 {[%emt 0:01:46]} ({Predecessor:} 14... a4 15. c4 Nxd3 16. Qxd3 Bb7 17. Nd4 dxc4 18. Nxc4 Nf5 19. Rfd1 O-O 20. Nxf5 exf5 21. Qe3 Qc7 22. Nxb6 Rad8 23. Rdc1 Bc5 24. Rxc5 Qxb6 25. e6 Qxe6 26. Qh6 {1-0 (26) Nowicki,B (2349)-Rudolf,M (2342) Jastrzebia Gora 2019}) 15. a4 {[%emt 0:11:06]} Rc8 {[%emt 0:03:18]} 16. Qe3 {[%emt 0:00:52]} Nf5 {[%emt 0:09:16]} 17. Qe2 {[%emt 0:01:16]} Nxd3 {[%emt 0:14:42]} 18. cxd3 {[%emt 0:10:14]} Rc2 {[%emt 0:19:58]} 19. Rab1 {[%emt 0:00:21]} O-O {[%emt 0:01:10]} (19... g5 $11) 20. Ne1 {[%emt 0:11:57]} ({Better is} 20. Rfc1 $14 Qc7 21. Nb3) 20... Rc7 {[%emt 0:02:32]} 21. Nef3 {[%emt 0:00:10]} d4 {[%emt 0:15:28]} (21... Rc2 $11) 22. Rfc1 {[%emt 0:01:34]} Rxc1+ {[%emt 0:05:47]} 23. Rxc1 {[%emt 0:00:04]} Qd5 {[%emt 0:01:08]} 24. Rc4 {[%emt 0:00:42]} Rc8 {[%emt 0:00:54]} 25. Rxc8+ Bxc8 {[%emt 0:00:00]} 26. Nc4 {[%emt 0:02:08]} Bd8 {[%emt 0:01:05]} (26... Bb7 $1 $11) 27. Qe4 $16 {[%emt 0:01:24]} Qd7 {[%emt 0:00:57] White is better.} 28. Qc6 {[%emt 0:01:29] White is more active.} ({Not} 28. Bxd4 $2 Bb7 29. Qf4 Bxf3 30. gxf3 Qxd4 $19) 28... Qxc6 {[%emt 0:03:07]} 29. bxc6 {[%emt 0:00:05] Hoping for Ba3.} Ba6 {[%emt 0:00:00]} 30. Nd6 {[%emt 0:10:16] Inhibits b5.  Weighted Error Value: White=0.10 (very precise) /Black=0.15 (very precise)} ({Of course not} 30. Bxd4 Bxc4 31. dxc4 Ne7 $11) 1/2-1/2

[Event "5th Sharjah Masters 2022"]
[Site "Sharjah"]
[Date "2022.05.25"]
[Round "5.27"]
[White "Mastrovasilis, Dimitrios"]
[Black "Davtyan, Artur"]
[Result "1/2-1/2"]
[ECO "C88"]
[WhiteElo "2613"]
[BlackElo "2488"]
[Annotator "TA"]
[PlyCount "49"]
[EventDate "2022.05.21"]
[EventType "swiss"]
[EventCountry "UAE"]
[SourceTitle "playchess.com"]
[Source "ChessBase"]
[SourceQuality "1"]
[TimeControl "5400+30"]

{[%evp 22,49,73,16,16,7,25,27,43,0,6,0,0,-19,-47,-101,39,43,36,42,38,16,16,29,20,0,0,0,29,0]} 1. e4 {[%emt 0:00:45]} e5 {[%emt 0:00:08]} 2. Nf3 {[%emt 0:00:08]} Nc6 {[%emt 0:00:06]} 3. Bb5 {[%emt 0:00:10]} a6 {[%emt 0:00:06]} 4. Ba4 {[%emt 0:00:07]} Nf6 {[%emt 0:00:13]} 5. O-O {[%emt 0:00:20]} Be7 {[%emt 0:00:07]} 6. Re1 {[%emt 0:00:25]} b5 {[%emt 0:00:09]} 7. Bb3 {[%emt 0:00:06]} O-O {[%emt 0:00:33]} 8. h3 {[%emt 0:01:51]} d5 {[%emt 0:03:13]} 9. exd5 {[%emt 0:00:56]} Nxd5 {[%emt 0:00:02]} 10. Nxe5 {[%emt 0:01:08]} Nxe5 {[%emt 0:00:05]} 11. Rxe5 {[%emt 0:00:10]} Bb7 {[%emt 0:00:23] is the new trend.} 12. d3 {[%emt 0:12:55]} (12. Qf3 $1 $16 {[%cal Rb3d5]} c6 13. Nc3) 12... Qd6 $11 {[%emt 0:01:14] C88: Closed Ruy Lopez: Anti-Marshall Systems.} 13. Re1 {[%emt 0:11:03]} c5 {[%emt 0:08:03]} 14. Nd2 {[%emt 0:04:09]} (14. Qf3 {seems wilder.} Rab8 15. Bxd5 Bxd5 16. Qf5) 14... Rad8 {[%emt 0:11:19][%cal Oc5c4] [#]} 15. Qf3 $146 {[%emt 0:11:51] Hoping for c4.} (15. Qg4 {keeps more tension.} Nf6 16. Qf5 Bc8 17. Qf3) ({Predecessor:} 15. a4 c4 16. dxc4 Nf4 17. Qg4 Nxg2 18. Re4 Nh4 19. axb5 Kh8 20. Rf4 f5 21. Qg3 Rf6 22. c5 Qxc5 23. Rxh4 Rg6 24. Qxg6 {0-1 (24) Patel,A (2449)-Popilski,G (2502) Dallas 2017}) 15... Qc7 {[%emt 0:06:52]} 16. Bxd5 {[%emt 0:13:42]} (16. a4 {looks sharper.} Nf6 17. Qf5 Bd6 18. axb5 axb5 19. Nf3) 16... Rxd5 {[%emt 0:13:37]} 17. Ne4 {[%emt 0:02:32]} f5 $1 {[%emt 0:05:16]} 18. Bf4 {[%emt 0:07:37] [#]} ({White should play} 18. Ng5 $15) 18... fxe4 {[%emt 0:07:28]} ({Better is} 18... Rd6 $1 $17 19. Qg3 (19. Bxd6 Bxd6 20. Qe3 fxe4 $17) 19... fxe4 20. dxe4 {[#]} c4 $1) 19. Bxc7 $14 {[%emt 0:00:18]} exf3 {[%emt 0:00:10]} 20. Rxe7 {[%emt 0:00:07]} fxg2 {[%emt 0:00:13]} 21. Be5 {[%emt 0:04:48]} Rf7 {[%emt 0:00:40]} 22. Re8+ {[%emt 0:02:25]} Rf8 {[%emt 0:00:30]} 23. Re7 {[%emt 0:00:06]} Rf7 {[%emt 0:00:11]} 24. Re8+ {[%emt 0:00:10]} Rf8 {[%emt 0:00:06]} 25. Re7 {[%emt 0:25:11] Weighted Error Value: White=0.21 (precise) /Black=0.20 (precise)} 1/2-1/2

[Event "5th Sharjah Masters 2022"]
[Site "Sharjah"]
[Date "2022.05.25"]
[Round "5.28"]
[White "Moroni, Luca Jr"]
[Black "Ortega Amarelle, Mariano"]
[Result "1-0"]
[ECO "D32"]
[WhiteElo "2581"]
[BlackElo "2476"]
[Annotator "TA"]
[PlyCount "59"]
[EventDate "2022.05.21"]
[EventType "swiss"]
[EventCountry "UAE"]
[SourceTitle "playchess.com"]
[Source "ChessBase"]
[SourceQuality "1"]
[TimeControl "5400+30"]

{[%evp 25,59,0,11,10,13,21,30,-6,0,0,11,11,9,18,17,21,461,441,582,570,566,560,583,562,546,491,581,571,633,384,380,367,797,735,930,908]} 1. d4 {[%emt 0:01:31]} Nf6 {[%emt 0:00:17]} 2. c4 {[%emt 0:00:03]} e6 {[%emt 0:00:09]} 3. Nf3 {[%emt 0:00:03]} d5 {[%emt 0:00:15]} 4. Nc3 {[%emt 0:00:03]} c5 {[%emt 0:00:17]} 5. cxd5 {[%emt 0:00:07]} cxd4 {[%emt 0:02:17]} 6. Qa4+ {[%emt 0:00:10]} Bd7 {[%emt 0:00:19]} 7. Qxd4 {[%emt 0:00:06]} exd5 {[%emt 0:00:10]} 8. e3 {[%emt 0:00:15]} Nc6 {[%emt 0:00:29]} 9. Qd1 {[%emt 0:00:03]} Bg4 {[%emt 0:15:57]} 10. Be2 {[%emt 0:02:13]} Bc5 {[%emt 0:03:24]} 11. O-O {[%emt 0:00:51]} O-O {[%emt 0:00:14]} 12. b3 {[%emt 0:03:16]} a6 {[%emt 0:10:14]} 13. Bb2 {[%emt 0:01:07]} Re8 {[%emt 0:07:31]} 14. Rc1 {[%emt 0:01:14] [#] D32: Tarrasch Defence: Sidelines and lines without g3.} Qd6 $146 {[%emt 0:01:59]} ({Predecessor:} 14... Ba7 15. h3 Bh5 16. Nd4 Bg6 17. Nxc6 bxc6 18. Na4 Qd6 19. Bd4 Bb8 20. g3 Ne4 21. Qe1 Bf5 22. Bg4 Ng5 {0-1 (47) Martirosyan,H (2632)-Erigaisi,A (2567) Chess.com INT 2021}) 15. h3 {[%emt 0:19:35]} Bh5 {[%emt 0:06:23]} 16. Nd4 {[%emt 0:10:33] White has an edge.} Bxd4 {[%emt 0:21:27]} 17. Bxh5 {[%emt 0:01:49]} Bb6 {[%emt 0:00:14]} 18. Bf3 {[%emt 0:20:16][%cal Rc3d5]} Bc7 {[%emt 0:00:46][%csl Gc7][%cal Rd6h2] [#]} 19. g3 {[%emt 0:00:37][%cal Rc3d5]} Rxe3 {[%emt 0:00:34][%cal Oa8d8]} 20. Bg2 {[%emt 0:04:11] This bishop pair is nice.} Rxg3 {[%emt 0:10:28][%mdl 8192] A mistake that costs the game.} 21. fxg3 $18 {[%emt 0:01:55][%cal Rc3d5]} Qxg3 {[%emt 0:00:04] [#] aiming for ...Qh2+.} 22. Rxf6 $1 {[%emt 0:01:33]} gxf6 {[%emt 0:11:13]} 23. Nxd5 {[%emt 0:00:45]} ({Weaker is} 23. Qg4+ Qxg4 24. hxg4 Be5 25. Bxd5 Rd8 $18) 23... Be5 {[%emt 0:01:33]} 24. Nxf6+ {[%emt 0:02:24]} Kh8 {[%emt 0:00:30]} 25. Bxe5 {[%emt 0:00:44]} ({And not} 25. Qh5 Qh2+ 26. Kf2 Qg3+ 27. Kg1 Qh2+ 28. Kf2 Qf4+ 29. Kg1 Qh2+ $11) 25... Nxe5 {[%emt 0:00:03][%cal Bc6e5,Be5d3,Bd3f4][%mdl 32]} 26. Qe2 {[%emt 0:01:15] Against Qe3+} Nd3 {[%emt 0:00:35]} 27. Rf1 {[%emt 0:01:54]} Nf4 {[%emt 0:00:06]} 28. Qg4 {[%emt 0:02:21]} Qe3+ {[%emt 0:00:23]} (28... Qxg2+ 29. Qxg2 Nxg2 30. Kxg2 Rc8) 29. Kh1 {[%emt 0:00:07]} Ne2 {[%emt 0:00:10]} 30. Bf3 {[%emt 0:01:09] Weighted Error Value: White=0.25 (precise) /Black=0.76} 1-0

[Event "5th Sharjah Masters 2022"]
[Site "Sharjah"]
[Date "2022.05.25"]
[Round "5.29"]
[White "Gharibyan, Mamikon"]
[Black "Suleymanli, Aydin"]
[Result "1-0"]
[ECO "D37"]
[WhiteElo "2487"]
[BlackElo "2537"]
[Annotator "TA"]
[PlyCount "61"]
[EventDate "2022.05.21"]
[EventType "swiss"]
[EventCountry "UAE"]
[SourceTitle "playchess.com"]
[Source "ChessBase"]
[SourceQuality "1"]
[TimeControl "5400+30"]

{[%evp 9,61,40,29,23,27,27,19,27,32,29,52,5,57,0,0,0,0,0,0,0,0,8,35,35,42,34,39,35,88,48,163,170,392,394,395,381,382,380,391,378,408,413,401,401,547,516,644,644,603,503,647,513,504,494]} 1. d4 {[%emt 0:00:03]} Nf6 {[%emt 0:00:19]} 2. c4 {[%emt 0:00:17]} e6 {[%emt 0:00:04]} 3. Nf3 {[%emt 0:01:43]} d5 {[%emt 0:00:09]} 4. Nc3 {[%emt 0:00:13]} h6 {[%emt 0:00:08]} 5. g3 {[%emt 0:00:49]} Nc6 {[%emt 0:00:15]} 6. Bg2 {[%emt 0:00:43] D37: Queen's Gambit Declined: 5 Bf4.} Bd6 {[%emt 0:00:10]} 7. O-O {[%emt 0:00:20]} O-O {[%emt 0:00:58]} 8. b3 {[%emt 0:00:21] The position is equal.} dxc4 {[%emt 0:00:14]} 9. bxc4 {[%emt 0:00:12]} e5 {[%emt 0:00:19]} 10. d5 {[%emt 0:06:55] [#]} (10. Rb1 $14) 10... Ne7 $146 {[%emt 0:01:37]} (10... Na5 $11) ({Predecessor:} 10... Nb8 11. Nd2 Na6 12. Nb3 Re8 13. h3 b6 14. Be3 Bd7 15. Qd2 Qe7 16. Rac1 Rac8 {½-½ (69) Dreev,A (2623)-Matlakov,M (2674) Chess.com INT 2022}) 11. c5 {[%emt 0:11:25]} (11. Bb2 $14) 11... Bxc5 $11 {[%emt 0:00:30][%cal Re7d5]} 12. Nxe5 {[%emt 0:00:06]} Bb4 $1 {[%emt 0:01:59]} 13. Bb2 {[%emt 0:01:01]} Bxc3 {[%emt 0:00:25]} 14. Bxc3 {[%emt 0:00:04]} Nexd5 {[%emt 0:01:13]} 15. Bb2 {[%emt 0:00:15] A strong pair of Bishops.} Nb6 {[%emt 0:22:53]} 16. Qc2 {[%emt 0:06:22][%mdl 1024] White has compensation.} Qe7 {[%emt 0:03:54]} 17. a4 {[%emt 0:14:23][%cal Ba2a4,Ba4a5,Ba5a6,Ba6b7][%mdl 32]} Nbd5 {[%emt 0:05:30]} 18. a5 {[%emt 0:03:19]} Rd8 {[%emt 0:02:44]} (18... Nb4 $14 19. Qc3 Re8) 19. a6 {[%emt 0:04:49] White is more active.} Rd6 {[%emt 0:03:19]} ({Better is} 19... Nb4 $14 20. Qb3 (20. axb7 Bxb7 21. Qc4 Bxg2 $11) 20... Be6) 20. Nd3 $18 {[%emt 0:06:07][%cal Be5d3,Bd3c5,Bc5e6][%mdl 32] Black must now prevent Ba3.} Qe8 $2 {[%emt 0:20:24] [#]} (20... b6 {was called for.}) 21. Bxf6 {[%emt 0:05:55]} gxf6 {[%emt 0:00:15]} 22. Qb3 {[%emt 0:02:59][%csl LRb7,LRd5]} Be6 {[%emt 0:01:08]} 23. axb7 {[%emt 0:01:39]} Rb8 {[%emt 0:00:04][%cal Od5e3]} 24. Nc5 {[%emt 0:06:02]} Nf4 {[%emt 0:03:51]} 25. Nxe6 {[%emt 0:00:36]} Nxe2+ {[%emt 0:00:08]} 26. Kh1 {[%emt 0:00:04]} Rxe6 {[%emt 0:00:17]} 27. Rxa7 {[%emt 0:03:09] White is clearly winning.} c6 {[%emt 0:00:43]} 28. Qc4 {[%emt 0:08:03]} Rd6 {[%emt 0:03:10]} 29. Ra8 {[%emt 0:02:19]} Nd4 {[%emt 0:00:34]} 30. Qc5 {[%emt 0:00:36]} Rd7 {[%emt 0:02:37]} 31. Qa7 {[%emt 0:02:32] Weighted Error Value: White=0.16 (very precise) /Black=0.38} 1-0